[Event "Late-Titled-Tuesday-Blitz-May-28-2024"]
[Site "Chess.com"]
[Date "2024.05.28"]
[Round "10"]
[White "ansko1999"]
[Black "GMBenjaminFinegold"]
[Result "0-1"]
[WhiteElo "2618"]
[BlackElo "2752"]
[TimeControl "180+1"]
[EndTime "15:55:10 PDT"]
[Termination "GMBenjaminFinegold won by resignation"]

1. Nf3 {[%clk 0:03:00.9]} 1... Nf6 {[%clk 0:02:58.6]} 2. b3 {[%clk 0:03:00.6]}
2... g6 {[%clk 0:02:57.5]} 3. g3 {[%clk 0:03:00.1]} 3... Bg7 {[%clk 0:02:57.9]}
4. Bb2 {[%clk 0:02:59.9]} 4... O-O {[%clk 0:02:58.8]} 5. Bg2 {[%clk 0:02:59.3]}
5... d5 {[%clk 0:02:59.1]} 6. O-O {[%clk 0:02:59.3]} 6... c6 {[%clk 0:02:59.5]}
7. c4 {[%clk 0:02:55.8]} 7... Bg4 {[%clk 0:02:59]} 8. d3 {[%clk 0:02:47.3]} 8...
Bxf3 {[%clk 0:02:54.9]} 9. Bxf3 {[%clk 0:02:47.2]} 9... e6 {[%clk 0:02:55.8]}
10. Nd2 {[%clk 0:02:41.5]} 10... Nbd7 {[%clk 0:02:56.2]} 11. Bg2 {[%clk
0:02:40.3]} 11... Ne8 {[%clk 0:02:56.1]} 12. d4 {[%clk 0:02:33.8]} 12... Nd6
{[%clk 0:02:53.8]} 13. e4 {[%clk 0:02:29.3]} 13... Nxe4 {[%clk 0:02:50.8]} 14.
Nxe4 {[%clk 0:02:30.2]} 14... dxe4 {[%clk 0:02:51.4]} 15. Bxe4 {[%clk
0:02:30.2]} 15... Qb6 {[%clk 0:02:44.1]} 16. Qe2 {[%clk 0:02:25.3]} 16... Rad8
{[%clk 0:02:35.3]} 17. Rad1 {[%clk 0:02:23.3]} 17... Rfe8 {[%clk 0:02:29.4]} 18.
h4 {[%clk 0:02:15.2]} 18... h5 {[%clk 0:02:28.3]} 19. Kg2 {[%clk 0:02:10.9]}
19... Nf6 {[%clk 0:02:25.6]} 20. Bf3 {[%clk 0:02:09.6]} 20... Rd7 {[%clk
0:02:24.4]} 21. Rd3 {[%clk 0:01:42.9]} 21... Red8 {[%clk 0:02:24.3]} 22. Rfd1
{[%clk 0:01:43.2]} 22... Qa6 {[%clk 0:02:23.2]} 23. Qc2 {[%clk 0:01:30.3]} 23...
b5 {[%clk 0:02:14.2]} 24. a4 {[%clk 0:01:24.9]} 24... bxc4 {[%clk 0:02:03.6]}
25. bxc4 {[%clk 0:01:25.8]} 25... Rb8 {[%clk 0:01:57.4]} 26. Bc1 {[%clk
0:01:12.5]} 26... Rb4 {[%clk 0:01:52.4]} 27. Rb3 {[%clk 0:00:52.9]} 27... Qxa4
{[%clk 0:01:38.8]} 28. Rdd3 {[%clk 0:00:41.9]} 28... Rxc4 {[%clk 0:01:25.1]} 29.
Rb8+ {[%clk 0:00:38.8]} 29... Kh7 {[%clk 0:01:10]} 30. Qxa4 {[%clk 0:00:39]}
30... Rxa4 {[%clk 0:01:10.1]} 31. Bxc6 {[%clk 0:00:38.6]} 31... Raxd4 {[%clk
0:01:09.5]} 32. Rxd4 {[%clk 0:00:20.5]} 32... Rxd4 {[%clk 0:01:10.3]} 33. Be3
{[%clk 0:00:14.8]} 33... Rc4 {[%clk 0:01:05]} 34. Bb5 {[%clk 0:00:11.5]} 34...
Rc7 {[%clk 0:00:51]} 35. Ra8 {[%clk 0:00:11.7]} 35... Nd5 {[%clk 0:00:50.9]} 36.
Bxa7 {[%clk 0:00:10.8]} 36... Rc2 {[%clk 0:00:46.3]} 37. Rd8 {[%clk 0:00:03.1]}
37... Ra2 {[%clk 0:00:41.6]} 38. Bc5 {[%clk 0:00:01.8]} 38... Ra5 {[%clk
0:00:40.3]} 39. Rb8 {[%clk 0:00:02.4]} 39... Nc7 {[%clk 0:00:39.4]} 40. Rb7
{[%clk 0:00:01.4]} 40... Nxb5 {[%clk 0:00:38]} 41. Bb4 {[%clk 0:00:01.9]} 41...
Ra2 {[%clk 0:00:36.9]} 42. Rxb5 {[%clk 0:00:01.7]} 42... Rb2 {[%clk 0:00:37.1]}
43. Rb7 {[%clk 0:00:01]} 43... Rb3 {[%clk 0:00:30.1]} 44. Rb6 {[%clk 0:00:01]}
44... Bd4 {[%clk 0:00:28.9]} 45. Rd6 {[%clk 0:00:01]} 45... Rxb4 {[%clk
0:00:28.5]} 46. Rd7 {[%clk 0:00:01.2]} 46... Kg7 {[%clk 0:00:28.2]} 47. Rxd4
{[%clk 0:00:01.4]} 47... Rxd4 {[%clk 0:00:27.8]} 0-1

[Event "Late-Titled-Tuesday-Blitz-May-28-2024"]
[Site "Chess.com"]
[Date "2024.05.28"]
[Round "10"]
[White "rasmussvane"]
[Black "Goryachkina"]
[Result "1/2-1/2"]
[WhiteElo "2917"]
[BlackElo "2723"]
[TimeControl "180+1"]
[EndTime "15:55:15 PDT"]
[Termination "Game drawn by repetition"]

1. Nf3 {[%clk 0:03:00.9]} 1... d5 {[%clk 0:02:59]} 2. g3 {[%clk 0:03:00.9]} 2...
g6 {[%clk 0:02:58.9]} 3. Bg2 {[%clk 0:03:00.8]} 3... Bg7 {[%clk 0:02:59.2]} 4.
d4 {[%clk 0:03:01.4]} 4... Nf6 {[%clk 0:02:59.1]} 5. O-O {[%clk 0:03:02]} 5...
O-O {[%clk 0:02:58.8]} 6. c4 {[%clk 0:03:02.6]} 6... c6 {[%clk 0:02:58.9]} 7.
Qb3 {[%clk 0:03:03]} 7... a5 {[%clk 0:02:57.2]} 8. Bd2 {[%clk 0:03:03.3]} 8...
a4 {[%clk 0:02:52.3]} 9. Qb4 {[%clk 0:03:03.6]} 9... dxc4 {[%clk 0:02:32.7]} 10.
Qxc4 {[%clk 0:03:03.4]} 10... Be6 {[%clk 0:02:30.4]} 11. Qc1 {[%clk 0:03:02.7]}
11... Nbd7 {[%clk 0:02:23.1]} 12. Rd1 {[%clk 0:02:57.2]} 12... Ne4 {[%clk
0:02:04.5]} 13. Bh6 {[%clk 0:02:53.9]} 13... Qa5 {[%clk 0:01:55.7]} 14. Bxg7
{[%clk 0:02:53.6]} 14... Kxg7 {[%clk 0:01:55.8]} 15. Ne1 {[%clk 0:02:46.3]}
15... Ndf6 {[%clk 0:01:43.6]} 16. Nc3 {[%clk 0:02:40.8]} 16... Nxc3 {[%clk
0:01:29.3]} 17. bxc3 {[%clk 0:02:41.7]} 17... Bd5 {[%clk 0:01:22.6]} 18. f3
{[%clk 0:02:23.7]} 18... a3 {[%clk 0:01:16.9]} 19. Nd3 {[%clk 0:01:55.3]} 19...
Bc4 {[%clk 0:01:12]} 20. e4 {[%clk 0:01:55.7]} 20... Bxd3 {[%clk 0:00:52.2]} 21.
Rxd3 {[%clk 0:01:56.6]} 21... Rfd8 {[%clk 0:00:52.3]} 22. Rb1 {[%clk 0:01:41.8]}
22... b5 {[%clk 0:00:44.2]} 23. f4 {[%clk 0:01:42.2]} 23... Ra6 {[%clk
0:00:40.1]} 24. c4 {[%clk 0:01:35.5]} 24... bxc4 {[%clk 0:00:36.4]} 25. Qxc4
{[%clk 0:01:35.5]} 25... Rb6 {[%clk 0:00:36.2]} 26. Rxb6 {[%clk 0:00:41.6]}
26... Qxb6 {[%clk 0:00:37.1]} 27. e5 {[%clk 0:00:33.3]} 27... Nd5 {[%clk
0:00:33.7]} 28. Rb3 {[%clk 0:00:29.5]} 28... Qa5 {[%clk 0:00:29.7]} 29. Qc1
{[%clk 0:00:29.6]} 29... e6 {[%clk 0:00:21.1]} 30. h4 {[%clk 0:00:29.8]} 30...
Qa4 {[%clk 0:00:18.4]} 31. Qc5 {[%clk 0:00:24.5]} 31... Qa6 {[%clk 0:00:11.2]}
32. Bf1 {[%clk 0:00:22.6]} 32... Qa4 {[%clk 0:00:09]} 33. Be2 {[%clk 0:00:20.5]}
33... Ra8 {[%clk 0:00:07.5]} 34. Rb7 {[%clk 0:00:18.2]} 34... Ra5 {[%clk
0:00:05.6]} 35. Qd6 {[%clk 0:00:15.7]} 35... Qxd4+ {[%clk 0:00:05.7]} 36. Kg2
{[%clk 0:00:11.3]} 36... Qe4+ {[%clk 0:00:05.8]} 37. Kf1 {[%clk 0:00:09.8]}
37... Qh1+ {[%clk 0:00:04.9]} 38. Kf2 {[%clk 0:00:09.8]} 38... Qh2+ {[%clk
0:00:05.4]} 39. Kf3 {[%clk 0:00:10.3]} 39... Qh1+ {[%clk 0:00:04.8]} 40. Kf2
{[%clk 0:00:11]} 40... Qh2+ {[%clk 0:00:05.3]} 41. Kf3 {[%clk 0:00:08.6]} 41...
Qh1+ {[%clk 0:00:05.8]} 42. Kf2 {[%clk 0:00:08.3]} 1/2-1/2

[Event "Late-Titled-Tuesday-Blitz-May-28-2024"]
[Site "Chess.com"]
[Date "2024.05.28"]
[Round "10"]
[White "karinachess1"]
[Black "Dolphin_2010"]
[Result "1-0"]
[WhiteElo "2658"]
[BlackElo "2747"]
[TimeControl "180+1"]
[EndTime "15:55:21 PDT"]
[Termination "karinachess1 won by resignation"]

1. d4 {[%clk 0:03:00.9]} 1... d5 {[%clk 0:02:52.9]} 2. c4 {[%clk 0:03:00.7]}
2... c6 {[%clk 0:02:49.7]} 3. Nf3 {[%clk 0:03:00.5]} 3... Nf6 {[%clk 0:02:48.2]}
4. g3 {[%clk 0:03:01]} 4... Bg4 {[%clk 0:02:46.8]} 5. Ne5 {[%clk 0:02:59.7]}
5... Bf5 {[%clk 0:02:47]} 6. Nc3 {[%clk 0:02:57.2]} 6... e6 {[%clk 0:02:47]} 7.
Qb3 {[%clk 0:02:56.1]} 7... Qb6 {[%clk 0:02:42.9]} 8. c5 {[%clk 0:02:55]} 8...
Qxb3 {[%clk 0:02:39]} 9. axb3 {[%clk 0:02:55.9]} 9... Nbd7 {[%clk 0:02:27]} 10.
f4 {[%clk 0:02:49.6]} 10... a6 {[%clk 0:02:23.5]} 11. b4 {[%clk 0:02:45]} 11...
Rc8 {[%clk 0:02:16.3]} 12. h3 {[%clk 0:02:42.5]} 12... h5 {[%clk 0:02:13.6]} 13.
Bg2 {[%clk 0:02:35.3]} 13... Be7 {[%clk 0:02:06.4]} 14. Be3 {[%clk 0:02:30.6]}
14... Nxe5 {[%clk 0:02:04.8]} 15. fxe5 {[%clk 0:02:10.9]} 15... Nd7 {[%clk
0:02:04.5]} 16. Kd2 {[%clk 0:02:06.3]} 16... f6 {[%clk 0:02:00.7]} 17. exf6
{[%clk 0:01:49.9]} 17... Bxf6 {[%clk 0:02:01.6]} 18. Bf2 {[%clk 0:01:43.9]}
18... e5 {[%clk 0:01:46.9]} 19. e4 {[%clk 0:01:09]} 19... exd4 {[%clk 0:01:39]}
20. Bxd4 {[%clk 0:01:05.2]} 20... Bxd4 {[%clk 0:01:27.8]} 21. exf5 {[%clk
0:01:05.4]} 21... Kf7 {[%clk 0:01:19.2]} 22. Kd3 {[%clk 0:00:57.1]} 22... Bf6
{[%clk 0:01:14.2]} 23. Rae1 {[%clk 0:00:52.5]} 23... Ne5+ {[%clk 0:01:09]} 24.
Kc2 {[%clk 0:00:51.9]} 24... Rce8 {[%clk 0:01:04.6]} 25. Rhf1 {[%clk 0:00:48]}
25... Nc4 {[%clk 0:01:03.9]} 26. Nxd5 {[%clk 0:00:43.5]} 26... Bxb2 {[%clk
0:00:46.1]} 27. Kd3 {[%clk 0:00:24.8]} 27... Ne5+ {[%clk 0:00:38.6]} 28. Kc2
{[%clk 0:00:25]} 28... cxd5 {[%clk 0:00:37.4]} 29. Bxd5+ {[%clk 0:00:23.7]}
29... Kf6 {[%clk 0:00:37.8]} 30. Bxb7 {[%clk 0:00:21]} 30... Re7 {[%clk
0:00:20]} 31. Bxa6 {[%clk 0:00:15.2]} 31... Rb8 {[%clk 0:00:19.8]} 32. Kxb2
{[%clk 0:00:10.8]} 32... Rxb4+ {[%clk 0:00:17.6]} 33. Kc3 {[%clk 0:00:11.3]}
33... Ra4 {[%clk 0:00:18.2]} 34. Ra1 {[%clk 0:00:11]} 34... Re4 {[%clk
0:00:12.7]} 35. Rfe1 {[%clk 0:00:08.5]} 35... Kxf5 {[%clk 0:00:13.1]} 36. Bc8+
{[%clk 0:00:06.9]} 36... Nd7 {[%clk 0:00:13.4]} 37. Rxe4 {[%clk 0:00:05.6]}
37... Kxe4 {[%clk 0:00:13.5]} 38. Re1+ {[%clk 0:00:05.7]} 38... Kd5 {[%clk
0:00:12.9]} 39. Rxe7 {[%clk 0:00:06]} 39... Nxc5 {[%clk 0:00:13.8]} 40. Rxg7
{[%clk 0:00:06.1]} 40... Ne4+ {[%clk 0:00:14.5]} 41. Kd3 {[%clk 0:00:06.5]}
41... Nf2+ {[%clk 0:00:15.2]} 42. Ke2 {[%clk 0:00:07]} 42... Nh1 {[%clk
0:00:15.2]} 43. Bb7+ {[%clk 0:00:07]} 43... Ke5 {[%clk 0:00:16.1]} 44. Bxh1
{[%clk 0:00:07.6]} 44... Ke6 {[%clk 0:00:17]} 45. g4 {[%clk 0:00:07.9]} 45...
Kf6 {[%clk 0:00:16.3]} 46. Ra7 {[%clk 0:00:07.7]} 46... Kg5 {[%clk 0:00:17.2]}
47. Ra5+ {[%clk 0:00:07.4]} 47... Kh4 {[%clk 0:00:18.1]} 48. Rxh5+ {[%clk
0:00:07.6]} 48... Kg3 {[%clk 0:00:19]} 49. g5 {[%clk 0:00:07.9]} 49... Kh2
{[%clk 0:00:19.9]} 50. g6 {[%clk 0:00:08]} 50... Kg3 {[%clk 0:00:20.8]} 1-0

[Event "Late-Titled-Tuesday-Blitz-May-28-2024"]
[Site "Chess.com"]
[Date "2024.05.28"]
[Round "10"]
[White "NMJeevanK"]
[Black "GothamChess"]
[Result "1-0"]
[WhiteElo "2700"]
[BlackElo "2792"]
[TimeControl "180+1"]
[EndTime "15:55:27 PDT"]
[Termination "NMJeevanK won on time"]

1. e4 {[%clk 0:03:00.9]} 1... d5 {[%clk 0:02:58.8]} 2. exd5 {[%clk 0:03:00.9]}
2... Qxd5 {[%clk 0:02:59.7]} 3. Nc3 {[%clk 0:03:00.5]} 3... Qa5 {[%clk
0:02:59.9]} 4. Nf3 {[%clk 0:03:01]} 4... Nf6 {[%clk 0:03:00]} 5. d4 {[%clk
0:03:01.3]} 5... Bf5 {[%clk 0:02:59.5]} 6. Bc4 {[%clk 0:03:00.1]} 6... e6 {[%clk
0:02:56.4]} 7. O-O {[%clk 0:02:56.7]} 7... Bb4 {[%clk 0:02:56.3]} 8. Bd2 {[%clk
0:02:53.4]} 8... Nc6 {[%clk 0:02:51.7]} 9. a3 {[%clk 0:02:51.6]} 9... Bxc3
{[%clk 0:02:49.6]} 10. Bxc3 {[%clk 0:02:52.5]} 10... Qb6 {[%clk 0:02:47.8]} 11.
b4 {[%clk 0:02:49.6]} 11... Rd8 {[%clk 0:02:45.7]} 12. Re1 {[%clk 0:02:46.6]}
12... O-O {[%clk 0:02:40.4]} 13. Qe2 {[%clk 0:02:42.6]} 13... Bg4 {[%clk
0:02:37.8]} 14. Bb3 {[%clk 0:02:29]} 14... Bxf3 {[%clk 0:02:33.8]} 15. Qxf3
{[%clk 0:02:29.9]} 15... Nxd4 {[%clk 0:02:33.6]} 16. Bxd4 {[%clk 0:02:29.4]}
16... Rxd4 {[%clk 0:02:34.5]} 17. c4 {[%clk 0:02:27.9]} 17... c6 {[%clk
0:02:30.5]} 18. c5 {[%clk 0:02:25.3]} 18... Qc7 {[%clk 0:02:28.9]} 19. Rad1
{[%clk 0:02:25.3]} 19... Rfd8 {[%clk 0:02:28.4]} 20. h3 {[%clk 0:02:24.9]} 20...
h6 {[%clk 0:02:22.8]} 21. Bc2 {[%clk 0:02:19.5]} 21... a5 {[%clk 0:02:19.3]} 22.
Rxd4 {[%clk 0:02:09.3]} 22... Rxd4 {[%clk 0:02:20.2]} 23. Qc3 {[%clk 0:02:09.7]}
23... Rd8 {[%clk 0:01:58.4]} 24. Rb1 {[%clk 0:02:01.2]} 24... axb4 {[%clk
0:01:55.6]} 25. axb4 {[%clk 0:02:00.8]} 25... Nd5 {[%clk 0:01:42.2]} 26. Qd3
{[%clk 0:01:55.1]} 26... f5 {[%clk 0:01:42.3]} 27. Qc4 {[%clk 0:01:48.3]} 27...
Qf4 {[%clk 0:01:39.5]} 28. Qe2 {[%clk 0:01:44.1]} 28... e5 {[%clk 0:01:19.3]}
29. Re1 {[%clk 0:01:34.4]} 29... e4 {[%clk 0:01:17.7]} 30. b5 {[%clk 0:01:33]}
30... Kh7 {[%clk 0:01:09.7]} 31. Qc4 {[%clk 0:01:22.1]} 31... cxb5 {[%clk
0:00:47.1]} 32. Qxb5 {[%clk 0:01:21.5]} 32... Qd2 {[%clk 0:00:36.4]} 33. Qe2
{[%clk 0:01:01.9]} 33... Nb4 {[%clk 0:00:21.9]} 34. Ba4 {[%clk 0:00:47.3]} 34...
Qxe2 {[%clk 0:00:19.2]} 35. Rxe2 {[%clk 0:00:48.2]} 35... Rd5 {[%clk 0:00:16.8]}
36. Rb2 {[%clk 0:00:43.1]} 36... Rd4 {[%clk 0:00:16.7]} 37. Be8 {[%clk
0:00:39.2]} 37... Kg8 {[%clk 0:00:12]} 38. Bg6 {[%clk 0:00:38]} 38... f4 {[%clk
0:00:11.1]} 39. Re2 {[%clk 0:00:35.2]} 39... Nd3 {[%clk 0:00:07.8]} 40. Bxe4
{[%clk 0:00:21.9]} 40... Nxc5 {[%clk 0:00:07.6]} 41. Bg6 {[%clk 0:00:22.4]}
41... Rd8 {[%clk 0:00:07.8]} 42. Re5 {[%clk 0:00:20.1]} 42... b6 {[%clk
0:00:03.7]} 43. Rf5 {[%clk 0:00:17.4]} 43... Nd7 {[%clk 0:00:02.7]} 44. Rxf4
{[%clk 0:00:15.2]} 44... Ne5 {[%clk 0:00:02.6]} 45. Bf5 {[%clk 0:00:14.9]} 45...
Rd1+ {[%clk 0:00:02.3]} 46. Kh2 {[%clk 0:00:15.1]} 46... Rd2 {[%clk 0:00:02]}
47. Be6+ {[%clk 0:00:14.8]} 47... Kh7 {[%clk 0:00:02.2]} 48. Rf8 {[%clk
0:00:14.5]} 48... Kg6 {[%clk 0:00:01.9]} 49. Bf5+ {[%clk 0:00:14.3]} 49... Kg5
{[%clk 0:00:02]} 50. Be4 {[%clk 0:00:14.9]} 50... Ng6 {[%clk 0:00:01.9]} 51.
Rf5+ {[%clk 0:00:14.9]} 1-0

[Event "Late-Titled-Tuesday-Blitz-May-28-2024"]
[Site "Chess.com"]
[Date "2024.05.28"]
[Round "10"]
[White "Jahonas"]
[Black "slidingknight2775"]
[Result "1/2-1/2"]
[WhiteElo "2474"]
[BlackElo "2629"]
[TimeControl "180+1"]
[EndTime "15:55:30 PDT"]
[Termination "Game drawn by repetition"]

1. d4 {[%clk 0:03:00.9]} 1... Nf6 {[%clk 0:02:44.8]} 2. Nf3 {[%clk 0:02:59.2]}
2... e6 {[%clk 0:02:42.1]} 3. c3 {[%clk 0:02:59.3]} 3... c5 {[%clk 0:02:41.4]}
4. e3 {[%clk 0:02:57.5]} 4... b6 {[%clk 0:02:41.5]} 5. Bd3 {[%clk 0:02:56.3]}
5... Bb7 {[%clk 0:02:41.8]} 6. Nbd2 {[%clk 0:02:56.6]} 6... Be7 {[%clk 0:02:42]}
7. O-O {[%clk 0:02:56.5]} 7... d5 {[%clk 0:02:42.2]} 8. Qe2 {[%clk 0:02:56.8]}
8... Nbd7 {[%clk 0:02:40]} 9. Rd1 {[%clk 0:02:56.2]} 9... O-O {[%clk 0:02:39.8]}
10. e4 {[%clk 0:02:56]} 10... dxe4 {[%clk 0:02:40]} 11. Nxe4 {[%clk 0:02:55.7]}
11... Nxe4 {[%clk 0:02:40.4]} 12. Bxe4 {[%clk 0:02:56.1]} 12... Bxe4 {[%clk
0:02:40.9]} 13. Qxe4 {[%clk 0:02:56.1]} 13... Nf6 {[%clk 0:02:41.5]} 14. Qe2
{[%clk 0:02:56.4]} 14... Qc7 {[%clk 0:02:41]} 15. Bg5 {[%clk 0:02:54.8]} 15...
h6 {[%clk 0:02:39.6]} 16. Bh4 {[%clk 0:02:54.5]} 16... Rfe8 {[%clk 0:02:36.7]}
17. Bg3 {[%clk 0:02:54.6]} 17... Qb7 {[%clk 0:02:36.2]} 18. dxc5 {[%clk
0:02:51]} 18... Bxc5 {[%clk 0:02:37.1]} 19. b3 {[%clk 0:02:49]} 19... b5 {[%clk
0:02:27.5]} 20. Rac1 {[%clk 0:02:48]} 20... Rad8 {[%clk 0:02:01.2]} 21. c4
{[%clk 0:02:46.6]} 21... Rxd1+ {[%clk 0:01:58.3]} 22. Rxd1 {[%clk 0:02:46.4]}
22... a6 {[%clk 0:01:50.1]} 23. Bd6 {[%clk 0:02:40.8]} 23... Bxd6 {[%clk
0:01:36]} 24. Rxd6 {[%clk 0:02:40.1]} 24... Ne4 {[%clk 0:01:34.3]} 25. Rd4
{[%clk 0:02:27.4]} 25... Nf6 {[%clk 0:01:18.7]} 26. h3 {[%clk 0:02:23.1]} 26...
bxc4 {[%clk 0:01:13.5]} 27. Rxc4 {[%clk 0:02:14.3]} 27... Rd8 {[%clk 0:01:08.6]}
28. Qc2 {[%clk 0:02:01]} 28... Qd5 {[%clk 0:00:57.3]} 29. Rd4 {[%clk 0:01:56.2]}
29... Qa8 {[%clk 0:00:55.8]} 30. Rxd8+ {[%clk 0:01:44.2]} 30... Qxd8 {[%clk
0:00:56.7]} 31. g3 {[%clk 0:01:42]} 31... a5 {[%clk 0:00:50.1]} 32. Ne5 {[%clk
0:01:37.8]} 32... g6 {[%clk 0:00:23.9]} 33. Nc6 {[%clk 0:01:37]} 33... Qc7
{[%clk 0:00:16.5]} 34. Qc5 {[%clk 0:01:35.2]} 34... Nd5 {[%clk 0:00:12.4]} 35.
a3 {[%clk 0:01:33.4]} 35... Kh7 {[%clk 0:00:11]} 36. Qc4 {[%clk 0:01:18.5]}
36... Nb6 {[%clk 0:00:09.4]} 37. Qb5 {[%clk 0:01:15.3]} 37... Nd5 {[%clk
0:00:05.7]} 38. b4 {[%clk 0:01:10.3]} 38... axb4 {[%clk 0:00:05.5]} 39. axb4
{[%clk 0:01:10.4]} 39... Qd6 {[%clk 0:00:03.1]} 40. Qc4 {[%clk 0:01:07.9]} 40...
Nb6 {[%clk 0:00:02]} 41. Qc5 {[%clk 0:01:06]} 41... Qxc5 {[%clk 0:00:02.4]} 42.
bxc5 {[%clk 0:01:05.7]} 42... Nd7 {[%clk 0:00:03]} 43. Nd8 {[%clk 0:01:04.4]}
43... Nxc5 {[%clk 0:00:03.4]} 44. Nxf7 {[%clk 0:01:04]} 44... Nd7 {[%clk
0:00:02.9]} 45. Nd8 {[%clk 0:01:02.5]} 45... Nc5 {[%clk 0:00:02]} 46. Nc6 {[%clk
0:01:02.3]} 46... Kg7 {[%clk 0:00:02.3]} 47. Kg2 {[%clk 0:01:02.6]} 47... Kf6
{[%clk 0:00:02.4]} 48. Nd4 {[%clk 0:01:02.5]} 48... g5 {[%clk 0:00:02.7]} 49.
Kf3 {[%clk 0:01:01.9]} 49... Nd7 {[%clk 0:00:03.2]} 50. Ke3 {[%clk 0:01:02.1]}
50... Ne5 {[%clk 0:00:03.6]} 51. Nf3 {[%clk 0:01:02]} 51... Ng6 {[%clk
0:00:03.6]} 52. Ke4 {[%clk 0:01:01.8]} 52... Ne7 {[%clk 0:00:03.7]} 53. Ne5
{[%clk 0:01:00.8]} 53... Nf5 {[%clk 0:00:04]} 54. Nd3 {[%clk 0:01:00]} 54...
Nd6+ {[%clk 0:00:03.9]} 55. Ke3 {[%clk 0:01:00]} 55... Nf5+ {[%clk 0:00:04.3]}
56. Ke4 {[%clk 0:00:59.7]} 56... Nd6+ {[%clk 0:00:04.7]} 57. Kf3 {[%clk
0:00:59.8]} 57... Nf5 {[%clk 0:00:04.6]} 58. g4 {[%clk 0:01:00.2]} 58... Nd4+
{[%clk 0:00:03.1]} 59. Ke4 {[%clk 0:01:00.5]} 59... Nc6 {[%clk 0:00:02.4]} 60.
f4 {[%clk 0:01:00.6]} 60... gxf4 {[%clk 0:00:02.5]} 61. Nxf4 {[%clk 0:01:00.8]}
61... Ne7 {[%clk 0:00:03]} 62. Nh5+ {[%clk 0:01:00.9]} 62... Kg6 {[%clk
0:00:02.8]} 63. Nf4+ {[%clk 0:01:01]} 63... Kf6 {[%clk 0:00:03]} 64. Nh5+ {[%clk
0:01:01.1]} 64... Kg6 {[%clk 0:00:03.6]} 65. h4 {[%clk 0:01:01.7]} 65... Nc6
{[%clk 0:00:02.6]} 66. Nf4+ {[%clk 0:01:01.1]} 66... Kf7 {[%clk 0:00:03.2]} 67.
Nd3 {[%clk 0:01:02]} 67... Kf6 {[%clk 0:00:02.9]} 68. Nf4 {[%clk 0:01:01.2]}
68... Kf7 {[%clk 0:00:03.5]} 69. Nh3 {[%clk 0:01:00.8]} 69... Kf6 {[%clk
0:00:03.6]} 70. Nf4 {[%clk 0:01:00.2]} 70... Kf7 {[%clk 0:00:04.2]} 1/2-1/2

[Event "Late-Titled-Tuesday-Blitz-May-28-2024"]
[Site "Chess.com"]
[Date "2024.05.28"]
[Round "10"]
[White "Zorbos"]
[Black "swayamsm"]
[Result "1-0"]
[WhiteElo "2736"]
[BlackElo "2571"]
[TimeControl "180+1"]
[EndTime "15:55:33 PDT"]
[Termination "Zorbos won by resignation"]

1. e4 {[%clk 0:03:00.9]} 1... e5 {[%clk 0:02:58.7]} 2. Nf3 {[%clk 0:03:00.9]}
2... Nc6 {[%clk 0:02:59]} 3. Bb5 {[%clk 0:03:01.1]} 3... a6 {[%clk 0:02:58.3]}
4. Ba4 {[%clk 0:03:01.3]} 4... Nf6 {[%clk 0:02:57.6]} 5. O-O {[%clk 0:02:59.3]}
5... Be7 {[%clk 0:02:58.1]} 6. Re1 {[%clk 0:02:57.2]} 6... b5 {[%clk 0:02:58.3]}
7. Bb3 {[%clk 0:02:56.9]} 7... O-O {[%clk 0:02:59.2]} 8. a4 {[%clk 0:02:57.4]}
8... Bb7 {[%clk 0:02:56.8]} 9. d3 {[%clk 0:02:57.6]} 9... d5 {[%clk 0:02:52.8]}
10. exd5 {[%clk 0:02:57.1]} 10... Nxd5 {[%clk 0:02:53.7]} 11. Nxe5 {[%clk
0:02:57.7]} 11... Nd4 {[%clk 0:02:49.2]} 12. Nd2 {[%clk 0:02:58.1]} 12... Nb4
{[%clk 0:02:38.8]} 13. Nef3 {[%clk 0:02:04.1]} 13... Bxf3 {[%clk 0:02:34.7]} 14.
Nxf3 {[%clk 0:02:04.1]} 14... Nxb3 {[%clk 0:02:35.3]} 15. cxb3 {[%clk 0:02:05]}
15... Nxd3 {[%clk 0:02:33.8]} 16. Rxe7 {[%clk 0:02:03.3]} 16... Qxe7 {[%clk
0:02:20.2]} 17. Qxd3 {[%clk 0:02:01.9]} 17... Rad8 {[%clk 0:02:20.1]} 18. Qc2
{[%clk 0:01:55.2]} 18... Qc5 {[%clk 0:02:14.5]} 19. Qe2 {[%clk 0:01:37.2]} 19...
Rfe8 {[%clk 0:02:11.7]} 20. Be3 {[%clk 0:01:37.7]} 20... Qb4 {[%clk 0:02:10.2]}
21. Qc2 {[%clk 0:01:38.2]} 21... h6 {[%clk 0:02:04.7]} 22. h3 {[%clk 0:01:37.6]}
22... Rb8 {[%clk 0:01:35.4]} 23. axb5 {[%clk 0:01:34.4]} 23... axb5 {[%clk
0:01:24.6]} 24. Ra7 {[%clk 0:01:29.7]} 24... Ra8 {[%clk 0:01:04.2]} 25. Rxc7
{[%clk 0:01:25.1]} 25... Ra1+ {[%clk 0:01:03.5]} 26. Kh2 {[%clk 0:01:25.7]}
26... Qd6+ {[%clk 0:01:02.8]} 27. g3 {[%clk 0:01:22.6]} 27... Qd5 {[%clk
0:01:00.5]} 28. Kg2 {[%clk 0:01:15]} 28... Rd8 {[%clk 0:00:44.3]} 29. Rc5 {[%clk
0:01:02]} 29... Qb7 {[%clk 0:00:42.2]} 30. Qf5 {[%clk 0:00:54.7]} 30... b4
{[%clk 0:00:33.4]} 31. g4 {[%clk 0:00:49.6]} 31... Qd7 {[%clk 0:00:27.5]} 32.
Qxd7 {[%clk 0:00:47.3]} 32... Rxd7 {[%clk 0:00:28.4]} 33. Rb5 {[%clk 0:00:47.9]}
33... Rb1 {[%clk 0:00:26.9]} 34. Bd4 {[%clk 0:00:42.8]} 34... Rd1 {[%clk
0:00:15.5]} 35. Rxb4 {[%clk 0:00:42.6]} 35... Rd3 {[%clk 0:00:16]} 36. Bc3
{[%clk 0:00:41.7]} 36... f6 {[%clk 0:00:14.5]} 37. Rb8+ {[%clk 0:00:40.2]} 37...
Kh7 {[%clk 0:00:13.9]} 38. b4 {[%clk 0:00:39.9]} 38... Re7 {[%clk 0:00:13.2]}
39. b5 {[%clk 0:00:39.3]} 39... Rd5 {[%clk 0:00:13.5]} 40. b6 {[%clk 0:00:39.2]}
40... Kg6 {[%clk 0:00:09]} 41. Nh4+ {[%clk 0:00:38.1]} 41... Kh7 {[%clk
0:00:08.5]} 42. Nf5 {[%clk 0:00:38.6]} 42... Red7 {[%clk 0:00:09.1]} 43. Ne3
{[%clk 0:00:35.7]} 43... Rb5 {[%clk 0:00:09.3]} 44. Nc4 {[%clk 0:00:25.8]} 44...
Kg6 {[%clk 0:00:07.4]} 45. Na5 {[%clk 0:00:22.6]} 45... Rd6 {[%clk 0:00:05.8]}
46. b7 {[%clk 0:00:21.9]} 46... Rdb6 {[%clk 0:00:06.3]} 47. b3 {[%clk
0:00:20.9]} 47... Rc5 {[%clk 0:00:03.8]} 48. Bd4 {[%clk 0:00:20.8]} 48... Rxa5
{[%clk 0:00:03.7]} 49. Bxb6 {[%clk 0:00:20.8]} 49... Rb5 {[%clk 0:00:04.6]} 50.
Rg8 {[%clk 0:00:21]} 50... Rxb6 {[%clk 0:00:05.1]} 51. b8=Q {[%clk 0:00:21.9]}
51... Rxb8 {[%clk 0:00:05.5]} 52. Rxb8 {[%clk 0:00:22.8]} 1-0